Cogmind - Beta 13 @@@ ROGUE MODE // 2024.04.03 @ 22:14:17 Player: Struisvogel Result: Destroyed by G-50 Soldier with Heavy Laser Performance ------------- Evolutions (2) 1000 Regions Visited (4) 800 Robots Destroyed (44) 220 Value Destroyed (1323) 1323 Prototype IDs (0) 0 Alien Tech Used (0) 0 Bonus (8) 8 TOTAL SCORE: 3351 Bonus ------- High Alert Combat Kills 8 Cogmind --------- Core Integrity 0/550 Matter 100/300 Energy 89/100 System Corruption 0% Temperature Cool (9) Movement Treading (160) Location -8/Materials Parts ------- > --- POWER (3) -------- (None) > --- PROPULSION (2) --- Light Treads Improved Treads > --- UTILITY (3) ------ System Shield > --- WEAPON (3) ------- Improved Light Cannon Maul > --- INVENTORY (5) ---- Cesium-ion Thruster Large Storage Unit Particle Cannon Improved Light Cannon Peak State ------------ > --- POWER ------------ Improved Ion Engine Nuclear Core Light Nuclear Core > --- PROPULSION ------- Light Treads Improved Treads > --- UTILITY ---------- Heat Sink Large Storage Unit > --- WEAPON ----------- Spread Laser Heavy Assault Rifle Mini Grenade Launcher > --- INVENTORY -------- Light Treads Improved Treads Cesium-ion Thruster Large Storage Unit Medium Matter Pod Beam Rifle Particle Cannon Improved Light Cannon Improved Light Cannon Flak Cannon Mining Laser Maul [Rating: 21] Favorites ----------- Power Light Ion Engine Engine Light Ion Engine Power Core Light Nuclear Core Propulsion Improved Treads Treads Improved Treads Leg Aluminum Leg Wheel Wheel Flight Unit Flight Unit Utility Large Storage Unit Device Heat Sink Storage Large Storage Unit Processor Visual Processing Unit Hackware System Shield Weapon Particle Cannon Energy Gun Spread Laser Energy Cannon Particle Cannon Ballistic Gun Heavy Assault Rifle Ballistic Cannon Improved Light Cannon Launcher Mini Grenade Launcher Special Weapon Mining Laser Impact Weapon Maul Build | -11 -10 -9 -9 -8 ------- Run | Yrd Mat Mat Min Mat Slots Evolved 4 | . . 2 . 2 Power 2 | . . 2 . . Propulsion . | . . . . . Utility 1 | . . . . 1 Weapon 1 | . . . . 1 Parts Attached 43 | 6 14 5 3 15 Power 8 | 1 1 2 1 3 Engine 4 | 1 . 2 . 1 Core 4 | . 1 . 1 2 Reactor . | . . . . . Propulsion 14 | 3 5 1 . 5 Treads 9 | . 4 1 . 4 Leg 2 | 2 . . . . Wheel 1 | 1 . . . . Hover . | . . . . . Flight 2 | . 1 . . 1 Utility 5 | . 4 . . 1 Device 1 | . 1 . . . Storage 1 | . 1 . . . Processor 2 | . 2 . . . Hackware 1 | . . . . 1 Protection . | . . . . . Artifact . | . . . . . Weapon 16 | 2 4 2 2 6 Energy Gun 4 | 1 . . . 3 Energy Cannon 3 | . 2 . 1 . Ballistic Gun 4 | 1 1 1 1 . Ballistic Cannon 1 | . . . . 1 Launcher 2 | . 1 1 . . Special Weapon 1 | . . . . 1 Impact Weapon 1 | . . . . 1 Slashing Weapon . | . . . . . Piercing Weapon . | . . . . . Special Melee Weapon . | . . . . . Unidentified Prototypes . | . . . . . Parts Lost 21 | . 3 1 1 16 Power 7 | . 1 . . 6 Propulsion 4 | . 1 1 . 2 Utility 2 | . . . . 2 Weapon 8 | . 1 . 1 6 Highest Loss Streak 9 | . 2 1 1 9 To Critical Strikes . | . . . . . Average Slot Usage (%) 85 | . 95 90 91 61 Engine 13 | . 7 19 22 9 Core 4 | . 5 5 3 5 Treads 20 | . 25 22 22 10 Device 6 | . 1 11 11 6 Storage 8 | . 3 11 11 8 Processor 6 | . 20 . . . Energy Gun 2 | . 1 . . 7 Energy Cannon 6 | . 12 11 . . Ballistic Gun 8 | . 9 8 10 4 Launcher 5 | . 4 2 11 5 Naked Turns . | . . . . . Heaviest Build 47 | 7 32 43 40 47 Greatest Support 46 | 20 46 46 46 46 Greatest Overweight (x) 9 | . 2 . . 9 Average Overweight (x) . | . . . . 1 Largest Inventory Capacity 15 | 5 15 15 15 15 Average Capacity 11 | 5 7 15 15 14 Most Carried 15 | 5 5 12 14 15 Average Carried 7 | 2 3 7 12 11 Final Capacity 15 | 5 15 15 15 5 Final Carried 13 | 4 4 12 13 4 Class Distribution -------------------- 76% | Mutant 11% | Scavenger-Mutant 10% | Scavenger-Gunner Dominant Class ---------------- Mutant | -10/Materials Mutant | -9/Materials Mutant | -9/Mines Mutant | -8/Materials Resources | -11 -10 -9 -9 -8 ----------- Run | Yrd Mat Mat Min Mat Matter Collected 786 | 252 181 52 145 156 Remotely . | . . . . . Salvage Created 1178 | 38 453 235 198 254 Parts 82 | 2 36 16 10 18 Haulers Intercepted . | . . . . . Recyclers Shooed 2 | . . . 1 1 Parts Field Recycled . | . . . . . Retrieved Matter . | . . . . . Parts Self-Destructed . | . . . . . Prevented . | . . . . . Kills | -11 -10 -9 -9 -8 ------- Run | Yrd Mat Mat Min Mat Combat Hostiles Destroyed 31 | 1 13 5 6 6 Guns 13 | 1 5 3 . 4 Cannons 6 | . 3 2 1 . AOE 12 | . 5 . 5 2 Classes Destroyed 12 | 1 4 2 1 4 Worker 2 | . . . . 2 Builder 7 | . 4 . . 3 Tunneler 1 | . . . . 1 Mechanic 1 | . . . . 1 Operator 1 | . 1 . . . Watcher 2 | . 1 . . 1 Swarmer 3 | . 3 . . . Grunt 22 | 1 10 2 5 4 Duelist 1 | . . 1 . . Sentry 3 | . . 2 . 1 Hunter 1 | . . . . 1 Assembled 1 | . . . 1 . Best Kill Streak 11 | 1 11 2 3 5 Combat Bots Only 6 | 1 6 2 3 2 Max Kills in Single Turn 4 | 1 4 1 3 3 Gunslinging . | . . . . . Exploded 3 | . 2 . 3 1 Melee . | . . . . . Uniques/NPCs Destroyed . | . . . . . Combat | -11 -10 -9 -9 -8 -------- Run | Yrd Mat Mat Min Mat Hostile Shots Fired 267 | 5 77 17 4 164 Missed 76 | 3 22 6 1 44 Damage Taken 2950 | 21 779 156 192 1802 Core 781 | 10 188 . 23 560 Absorbed by Shields . | . . . . . Core Remaining (%) 70 | 96 20 . 94 . Volleys Fired 94 | 3 31 11 5 44 Largest 3 | 2 2 2 2 3 Hottest 118 | 70 98 91 98 118 Shots Fired 172 | 6 62 22 10 72 Gun 98 | 6 23 11 3 55 Cannon 47 | . 31 11 2 3 Launcher 27 | . 8 . 5 14 Special . | . . . . . Kinetic 64 | 3 23 11 3 24 Thermal 81 | 3 31 11 2 34 Explosive 27 | . 8 . 5 14 Electromagnetic . | . . . . . Robot Hit Streak 12 | 2 6 12 4 7 Robot Miss Streak 8 | 1 4 1 2 8 Penetration Max . | . . . . . Secondary Targets . | . . . . . Shots Hit Robots 114 | 4 33 18 6 53 Core Hits 94 | 2 28 8 13 43 Critical Kills . | . . . . . Critical Parts Destroyed 2 | . . . . 2 Critical Strikes 3 | . . . . 3 Burn 1 | . . . . 1 Destroy 1 | . . . . 1 Smash 1 | . . . . 1 Melee Attacks 3 | . . . . 3 Impact 3 | . . . . 3 Slashing . | . . . . . Piercing . | . . . . . Sneak Attacks 1 | . . . . 1 Combat Hostiles . | . . . . . Follow-up Attacks . | . . . . . Damage Inflicted 3486 | 54 1150 331 456 1495 Guns 922 | 54 170 104 27 567 Cannons 677 | . 371 227 40 39 Explosions 1712 | . 602 . 364 746 Melee 143 | . . . . 143 Ramming 32 | . 7 . 25 . Kinetic 553 | 29 170 104 27 223 Thermal 1046 | 25 371 227 40 383 Explosive 1712 | . 602 . 364 746 Electromagnetic . | . . . . . Impact 143 | . . . . 143 Slashing . | . . . . . Piercing . | . . . . . Highest Corruption . | . . . . . Average Corruption . | . . . . . Corruption Purged . | . . . . . Corruption Blocked . | . . . . . Overload Shots . | . . . . . Overflow Damage 131 | . 28 . 17 86 Projectiles . | . . . . . Explosions 65 | . 28 . 17 20 Melee 66 | . . . . 66 Knockbacks 2 | . . . 2 . Impact 2 | . . . 2 . Kinetic . | . . . . . Secondary . | . . . . . Self-Inflicted Damage 443 | . 143 . 150 150 Shots 15 | . 5 . 5 5 Rammed 6 | . 4 . 2 . Targets Rammed 6 | . 4 . 2 . Kicked . | . . . . . Crushed . | . . . . . Highest Temperature 460 | 39 345 63 48 460 Average Temperature 130 | 22 126 24 29 173 Received Heat Transfer 1509 | 12 312 72 24 1089 Effects 17 | . 2 . . 15 Shutdowns 3 | . . . . 3 Energy Bleed 3 | . 2 . . 1 Interference 3 | . . . . 3 Matter Decay 2 | . . . . 2 Damage (major) 6 | . . . . 6 Siege Activations . | . . . . . Robots Corrupted . | . . . . . Combat Hostiles . | . . . . . Parts Fried 1 | . . . . 1 Impact Corruptions 1 | . . . . 1 Robots Melted . | . . . . . Combat Hostiles . | . . . . . Parts Melted 1 | 1 . . . . Heat Transferred 2023 | 74 666 407 74 802 Parts Sabotaged . | . . . . . Parts Stolen . | . . . . . Parts Stripped . | . . . . . Power Chain Reactions . | . . . . . Alert | -11 -10 -9 -9 -8 ------- Run | Yrd Mat Mat Min Mat Peak Influence 427 | 20 427 292 312 373 Initial 121 | . 13 120 113 121 Average 200 | 3 171 218 234 262 Maximum Alert Level 2 | . 2 1 1 1 Low Security (%) 48 | 100 56 45 52 19 Level 1 50 | . 41 54 47 80 Level 2 . | . 2 . . . Level 3 . | . . . . . Level 4 . | . . . . . Level 5 . | . . . . . High Security . | . . . . . Max Security . | . . . . . Squads Dispatched 8 | . 4 2 . 2 Investigation 5 | . 2 2 . 1 Extermination . | . . . . . Reinforcement 3 | . 2 . . 1 Assault . | . . . . . Garrison . | . . . . . Intercept . | . . . . . Searches Triggered . | . . . . . Construction Impeded 1 | . . . . 1 Haulers Reinforced . | . . . . . Active Scanning Responses . | . . . . . Cargo Convoy Interrupts . | . . . . . Stealth | -11 -10 -9 -9 -8 --------- Run | Yrd Mat Mat Min Mat Distress Signals 1 | . 1 . . . Communications Jammed . | . . . . . Distress Signals . | . . . . . Times Spotted 52 | 1 28 5 5 13 Peak Tracking Total 9 | 1 9 2 1 4 Tactical Retreats 1 | . . . . 1 Traps | -11 -10 -9 -9 -8 ------- Run | Yrd Mat Mat Min Mat Traps Triggered . | . . . . . Indirectly . | . . . . . Trap Hack Attempts . | . . . . . Triggered . | . . . . . Disarmed . | . . . . . Reprogrammed . | . . . . . Reused . | . . . . . Traps Extracted . | . . . . . Installed . | . . . . . Triggered . | . . . . . Machines | -11 -10 -9 -9 -8 ---------- Run | Yrd Mat Mat Min Mat Machines Disabled 9 | . 5 . 1 3 Max in Single Turn 3 | . 3 . 1 1 Machines Repaired . | . . . . . Machines Dismantled . | . . . . . Machines Sabotaged . | . . . . . Overloaded Fab Kills . | . . . . . Hacking | -11 -10 -9 -9 -8 --------- Run | Yrd Mat Mat Min Mat Machines Accessed 7 | . 3 3 . 1 Terminals 5 | . 2 2 . 1 Fabricators . | . . . . . Repair Stations 1 | . . 1 . . Recycling Units 1 | . 1 . . . Scanalyzers . | . . . . . Garrison Access . | . . . . . Total Hacks 21 | . 8 10 . 3 Successful 14 | . 5 7 . 2 Failed 7 | . 3 3 . 1 Catastrophic 3 | . 2 . . 1 Database Lockouts . | . . . . . Manual . | . . . . . Terminals 15 | . 5 7 . 3 Fabricators . | . . . . . Repair Stations 3 | . . 3 . . Recycling Units 3 | . 3 . . . Scanalyzers . | . . . . . Garrison Access . | . . . . . Terminal Hacks 9 | . 2 5 . 2 Record 4 | . 1 1 . 2 Robot Analysis 1 | . . 1 . . Terminal Index 1 | . . 1 . . Alert Level 2 | . 1 1 . . Locate Traps 1 | . . 1 . . Fabricator Hacks . | . . . . . Repair Station Hacks 2 | . . 2 . . Scan Component 2 | . . 2 . . Recycling Unit Hacks 3 | . 3 . . . Recycle Component 1 | . 1 . . . Retrieve Matter 1 | . 1 . . . Retrieve Components 1 | . 1 . . . Scanalyzer . | . . . . . Garrison Access Hacks . | . . . . . Unauthorized Hacks . | . . . . . Terminals . | . . . . . Fabricators . | . . . . . Repair Stations . | . . . . . Recycling Units . | . . . . . Scanalyzers . | . . . . . Garrison Access . | . . . . . Data Cores Recovered . | . . . . . Used . | . . . . . Hacking Detections 7 | . 3 3 . 1 Full Trace Events 7 | . 3 3 . 1 Feedback Events . | . . . . . Feedback Blocked . | . . . . . Robot Schematics Acquired . | . . . . . Robots Built . | . . . . . Authchips . | . . . . . Time . | . . . . . Total Robot Build Rating . | . . . . . Part Schematics Acquired . | . . . . . Parts Built . | . . . . . Authchips . | . . . . . Time . | . . . . . Total Part Build Rating . | . . . . . Parts Repaired . | . . . . . Time . | . . . . . Parts Recycled 1 | . 1 . . . Recycled Matter . | . . . . . Retrieved Matter . | . . . . . Retrieved Components 4 | . 4 . . . Parts Scanalyzed . | . . . . . Part Schematics Acquired . | . . . . . Parts Damaged . | . . . . . Bothacking | -11 -10 -9 -9 -8 ------------ Run | Yrd Mat Mat Min Mat Used RIF Installer . | . . . . . Robots Hacked . | . . . . . Non-combat . | . . . . . Combat . | . . . . . Robot Hacks Applied . | . . . . . Relay Couplers Released . | . . . . . Fabnet Peak Effective % . | . . . . . Robots Rewired . | . . . . . Allies Hacked . | . . . . . Hacks Repelled . | . . . . . Allies | -11 -10 -9 -9 -8 -------- Run | Yrd Mat Mat Min Mat Total Allies . | . . . . . Largest Group . | . . . . . Highest-Rated Group . | . . . . . Highest-Rated Ally . | . . . . . Total Orders . | . . . . . Ally Attacks . | . . . . . Total Damage . | . . . . . Kills . | . . . . . Allies Corrupted . | . . . . . Allies Melted . | . . . . . Intel | -11 -10 -9 -9 -8 ------- Run | Yrd Mat Mat Min Mat Robot Analysis Total 1 | . . 1 . . Derelict Logs Recovered 1 | . . . 1 . Drone Launches . | . . . . . Drone Recoveries . | . . . . . Exploration | -11 -10 -9 -9 -8 ------------- Run | Yrd Mat Mat Min Mat Turns Passed 1948 | 151 598 383 363 453 Spaces Moved 937 | 118 273 208 207 131 Core 49 | 23 . . . 26 Treads 780 | . 260 208 207 105 Legs 102 | 95 7 . . . Wheels . | . . . . . Hover . | . . . . . Flight 6 | . 6 . . . Fastest Speed 50 | 50 120 160 160 160 Average Speed 167 | 106 168 160 160 242 Slowest Speed 500 | 120 240 160 160 500 Overloaded Moves . | . . . . . Propulsion Burnouts . | . . . . . Robots Hopped . | . . . . . Cave-ins Triggered . | . . . . . Exploration Rate (%) 20 | 8 37 18 26 13 Regions Visited 4 Branch Regions 1 Pre-discovered Areas . | . . . . . Known Exits Taken . | . . . . . Unknown Exits Taken 4 | 1 1 1 1 . Scrap Searched 1 | . . . 1 . Spaces Dug . | . . . . . Terrain Destroyed 219 | . 62 . 59 98 Melee . | . . . . . Projectile . | . . . . . AOE 219 | . 62 . 59 98 Terrain Rammed . | . . . . . Walls Destroyed . | . . . . . Machines Disabled . | . . . . . Actions | -11 -10 -9 -9 -8 --------- Run | Yrd Mat Mat Min Mat Total 1148 | 137 347 238 228 198 Wait . | . . . . . Move 933 | 117 272 207 206 131 Hop . | . . . . . Pick Up 46 | 10 16 12 3 5 Fast Attach . | . . . . . Attach 32 | 5 7 5 3 12 Detach 4 | . 2 1 1 . Swap 11 | 1 7 . . 3 Drop 11 | 1 8 2 . . Fire 94 | 3 31 11 5 44 Melee 3 | . . . . 3 Ram . | . . . . . Kick . | . . . . . Crush 6 | . 4 . 2 . Escape Stasis . | . . . . . Rewire 8 | . . . 8 . Trap . | . . . . . Miscellaneous . | . . . . . Route ------- -11/Scrapyard -10/Materials -9/Materials -9/Mines -8/Materials History --------- Turn | Location | Event 2 | -11/Scrapyard | Met Revision 17 108 | -11/Scrapyard | Discovered new exit (range 8) 152 | -11/Scrapyard | Entered Materials 335 | -10/Materials | Build established: Mutant 551 | -10/Materials | Discovered new exit (range 17) 635 | -10/Materials | Core integrity fell below 50% 750 | -10/Materials | Entered another Materials area 750 | -9/Materials | Evolved 2 slots: Power x2 921 | -9/Materials | Discovered new exit (range 7) 1133 | -9/Materials | Entered Mines 1158 | -9/Mines | Met a Derelict bent on vengeance 1205 | -9/Mines | Discovered new exit (range 6) 1238 | -9/Mines | Assembled infested the area 1496 | -9/Mines | Entered Materials 1496 | -8/Materials | Evolved 2 slots: Utility x1, Weapon x1 1730 | -8/Materials | Lost 3 parts (2p1n) 1781 | -8/Materials | Core integrity fell below 50% 1805 | -8/Materials | Lost 9 parts (3p1n5w) 1817 | -8/Materials | Core integrity fell below 20% 1949 | -8/Materials | Destroyed by G-50 Soldier with Heavy Laser Last Messages --------------- U-05 Engineer lays Concrete. K-01 Serf collects debris. U-05 Engineer lays Concrete. K-01 Serf collects debris. U-05 Engineer lays Concrete. Acquired 4 matter. U-05 Engineer lays Concrete. K-01 Serf collects debris. U-05 Engineer lays Concrete. U-05 Engineer builds a Wall. U-05 Engineer lays Concrete. K-01 Serf collects debris. U-05 Engineer lays Concrete. U-05 Engineer builds a Wall. R-06 Scavenger collects Terrain Scanner. Particle Gun destroyed. R-06 Scavenger collects Lgt. Ion Engine. Lrg. Storage Unit destroyed. Acquired System Shield. [Achievement: First Step to Greatness] Map ----- +----------------------------------------------------+ | | | | | | | | | | | | | | | | | | | | | | | | | | | | | | | ??????????????????????????????????????????? | | ??????????????????????????????????????????? | | ??????????????????????????????????????????? | | ??????????????????????????????????????????? | | ??????????????????????????????????????????? | | ??????????????????? ??????????????????????? | | ?????????????????##+#?????????????????????? | | ????????????????## ?????????????????????? | | ???????????????? #??##+##+#####????????? | | ????????????????# #??# #????????? | | ????????????????# #??# @ T #????????? | | ????????????????# #??# % g] #????????? | | ????????????????# ####g""" """ #?????#??? | | ????????????????# + """%""" #??#? ##?? | | ????????????????# ### """ """ #? # ##? | | ????????????????# ### # #? | | ????????????? ??# # # ! !# # #? | | ??# #######+## #######+####### #? | | ??# = T ##? | | ??# *!= % ##? | | ????????# ## ### ##? | | ????????# ???##! % ^ ^# # #? | | ????????#!!??????# % ^^^## # | | ????????#????????# * #????????? | | ?????????????????# = ### #????????? | | ?????????????????# ##### # ## #???????? | | ?????????????#####+##### # ## #???????? | | ?????????????# #### ## +???????? | | ?????????????# #### #? #???????? | | ?????????????# # # ### ###???????? | | ?????????????# # # # # #?????????? | | ?????????????# """ # # # # ###???????? | | ?????????????# """ # +# #???????? | | ?????????????# """ " ## #???????? | | ?????????????# " ] + #???????? | +----------------------------------------------------+ Best States ------------- Heat Dissipation 41 Energy Generation 30 Energy Capacity 465 Matter Stores 283 Matter Capacity 300 Sight Range 18 Terrain Scan Density 10 Evasion (%) 55 Recoil Reduction 2 Item Schematics ----------------- None Robot Schematics ------------------ None Fabricated ------------ Nothing Alien Tech Used ----------------- None Achievements -------------- Crack Shot First Step to Greatness I Survived The Infestation Let's See Who's Tougher One Hack Too Far Remodeling Storm Trooper Uninvited Guest Challenges ------------ None Game ------ Seed SalvageWardroneSource Manual? 0 Play Time 00:32:17 Cumulative 0.4 hours Start 2024.04.03 @ 21:42:16 End 2024.04.03 @ 22:14:17 Sessions 2 Manual Loads 0 Difficulty Rogue Special Mode None Game No. 1 Rogue 1 Adventurer 0 Explorer 0 Win Type - Total 0 Types 0/0/0/0/0/0/0/0/0 Lore% 0 Gallery% 2 Achievement% 3 Wizard Run 0 Options --------- Layout 1 ASCII 0 Keyboard 0 Movement Arrows Keybinds 0 Fullscreen 1 Font 24/Smallcaps Map View 50x35 Zoom Use 0% Tactical HUD 0 Map Filters NONE Filters NONE Steam 1 RUN: d9977d05-52fe-477d-9ca2-26a3c95c1009